fUST/lending_fUST_20250111
["ID","MTS","AMOUNT","RATE_DAILY","PERIOD"]
[348447979,1736532632862,-500.0,0.00021917,3]
[348447981,1736532632871,-500.0,0.00021917,3]
[348447983,1736532632880,-500.0,0.00021917,3]
[348447985,1736532632890,-500.0,0.00021917,3]
[348447986,1736532632900,-500.0,0.00021917,3]
[348447988,1736532632910,-500.0,0.00021917,3]
[348447990,1736532632919,-502.09351164,0.00021917,3]
[348447992,1736532632929,-504.10355821,0.00021917,3]
[348447994,1736532632938,-500.0,0.00021917,3]
[348447996,1736532632950,-500.0,0.00021917,3]
[348447998,1736532632960,-500.0,0.00021917,3]
[348448000,1736532632970,-503.49821531,0.00021917,3]
[348448002,1736532632980,-500.0,0.00021917,3]
[348448004,1736532632990,-500.47102507,0.00021917,3]
[348448006,1736532632999,-500.0,0.00021917,3]
[348448008,1736532633009,-500.0,0.00021917,3]
[348448010,1736532633019,-500.0,0.00021917,3]
[348448012,1736532633029,-500.0,0.00021917,3]
[348448015,1736532633039,-500.0,0.00021917,3]
[348448017,1736532633049,-500.0,0.00021917,3]
[348448019,1736532633060,-500.0,0.00021917,3]
[348448020,1736532633069,-500.0,0.00021917,3]
[348448023,1736532633080,-500.0,0.00021917,3]
[348448025,1736532633090,-500.0,0.00021917,3]
[348448027,1736532633102,-500.0,0.00021917,3]
[348448029,1736532633113,-500.0,0.00021917,3]
[348448031,1736532633124,-500.0,0.00021917,3]
[348448032,1736532633133,-500.0,0.00021917,3]
[348448035,1736532633144,-501.78866846,0.00021917,3]
[348448037,1736532633155,-500.0,0.00021917,3]
[348448038,1736532633165,-500.0,0.00021917,3]
[348448041,1736532633175,-500.0,0.00021917,3]
[348448042,1736532633186,-500.0,0.00021917,3]
[348448044,1736532633198,-501.40191099,0.00021917,3]
[348448049,1736532633362,-500.0,0.00021917,3]
[348448050,1736532633373,-500.61405082,0.00021917,3]
[348448051,1736532633384,-502.02303256,0.00021917,3]
[348448052,1736532633395,-501.05294508,0.00021917,2]
[348448053,1736532633405,-500.0,0.00021917,3]
[348448054,1736532633415,-500.0,0.00021917,3]
[348448055,1736532633426,-500.0,0.00021917,3]
[348448056,1736532633436,-500.0,0.00021917,3]
[348448057,1736532633447,-500.0,0.00021917,3]
[348448058,1736532633457,-550.05605231,0.00021917,3]
[348448059,1736532633467,-500.0,0.00021917,3]
[348448060,1736532633478,-500.0,0.00021917,3]
[348448061,1736532633488,-500.0,0.00021917,3]
[348448062,1736532633497,-500.0,0.00021917,3]
[348448063,1736532633507,-500.0,0.00021917,3]
[348448065,1736532633517,-500.0,0.00021917,3]
[348448067,1736532633527,-500.0,0.00021917,3]
[348448068,1736532633537,-500.0,0.00021917,3]
[348448070,1736532633549,-322.36311962,0.00021917,3]
[348448072,1736532633560,-500.0,0.00021917,3]
[348448074,1736532633571,-500.0,0.00021917,3]
[348448076,1736532633581,-500.0,0.00021917,3]
[348448078,1736532633590,-500.0,0.00021917,3]
[348448080,1736532633600,-500.0,0.00021917,3]
[348448082,1736532633610,-500.0,0.00021917,3]
[348448084,1736532633619,-500.0,0.00021917,3]
[348448086,1736532633630,-500.0,0.00021917,3]
[348448087,1736532633651,-500.0,0.00021917,3]
[348448090,1736532633661,-500.0,0.00021917,3]
[348448091,1736532633673,-500.0,0.00021917,3]
[348448093,1736532633682,-500.0,0.00021917,3]
[348448095,1736532633695,-500.0,0.00021917,3]
[348448097,1736532633706,-500.0,0.00021917,3]
[348448099,1736532633716,-500.0,0.00021917,3]
[348448101,1736532633726,-500.0,0.00021917,3]
[348448103,1736532633737,-500.0,0.00021917,3]
[348448104,1736532633747,-532.2730238,0.00021917,3]
[348448106,1736532633756,-500.0,0.00021917,3]
[348448108,1736532633766,-500.0,0.00021917,3]
[348448110,1736532633776,-500.0,0.00021917,3]
[348448112,1736532633785,-500.0,0.00021917,3]
[348448113,1736532633797,-500.0,0.00021917,3]
[348448115,1736532633807,-500.0,0.00021917,3]
[348448117,1736532633818,-500.0,0.00021917,3]
[348448119,1736532633828,-500.0,0.00021917,3]
[348448121,1736532633838,-500.0,0.00021917,3]
[348448123,1736532633848,-992.46,0.00021917,3]
[348448124,1736532633858,-504.62763379,0.00021917,3]
[348448125,1736532633868,-500.0,0.00021917,3]
[348448126,1736532633878,-500.0,0.00021917,3]
[348448127,1736532633888,-500.0,0.00021917,3]
[348448129,1736532633898,-500.0,0.00021917,3]
[348448131,1736532633908,-500.0,0.00021917,3]
[348448133,1736532633918,-500.0,0.00021917,3]
[348448135,1736532633927,-500.0,0.00021917,3]
[348448137,1736532633938,-500.0,0.00021917,3]
[348448139,1736532633949,-504.24198776,0.00021917,3]
[348448141,1736532633959,-500.0,0.00021917,3]
[348448142,1736532633969,-1000.0,0.00021917,2]
[348448145,1736532633980,-500.0,0.00021917,3]
[348448147,1736532633990,-500.0,0.00021917,3]
[348448148,1736532633999,-500.0,0.00021917,3]
[348448150,1736532634009,-500.0,0.00021917,3]
[348448152,1736532634019,-500.0,0.00021917,3]
[348448154,1736532634029,-500.0,0.00021917,3]
[348448156,1736532634039,-500.0,0.00021917,3]
[348448158,1736532634049,-500.0,0.00021917,3]
[348448160,1736532634059,-500.0,0.00021917,3]
[348448162,1736532634070,-500.0,0.00021917,3]
[348448164,1736532634079,-500.0,0.00021917,3]
[348448166,1736532634089,-500.0,0.00021917,3]
[348448168,1736532634099,-500.0,0.00021917,3]
[348448170,1736532634111,-500.0,0.00021917,3]
[348448172,1736532634121,-500.0,0.00021917,3]
[348448174,1736532634131,-601.84,0.00021917,3]
[348448176,1736532634141,-500.0,0.00021917,3]
[348448178,1736532634151,-500.0,0.00021917,3]
[348448180,1736532634161,-500.0,0.00021917,3]
[348448182,1736532634171,-500.0,0.00021917,3]
[348448184,1736532634181,-500.0,0.00021917,3]
[348448186,1736532634191,-994.86,0.00021917,3]
[348448188,1736532634203,-897.81,0.00021917,3]
[348448190,1736532634214,-419.73256669,0.00021917,3]
[348448192,1736532634224,-150.26331925,0.00021917,3]
[348448194,1736532634235,-500.0,0.00021917,3]
[348448196,1736532634247,-811.8,0.00021917,3]
[348448198,1736532634257,-500.0,0.00021917,3]
[348448200,1736532634267,-500.0,0.00021917,3]
[348448202,1736532634277,-500.0,0.00021917,3]
[348448204,1736532634287,-369.99801159,0.00021917,3]
[348448206,1736532634297,-500.0,0.00021917,3]
[348448208,1736532634307,-500.0,0.00021917,3]
[348448210,1736532634316,-500.0,0.00021917,3]
[348448212,1736532634327,-500.7511855,0.00021917,3]
[348448214,1736532634337,-500.0,0.00021917,3]
[348448215,1736532634347,-500.0,0.00021917,3]
[348448217,1736532634357,-500.0,0.00021917,3]
[348448219,1736532634367,-500.0,0.00021917,3]
[348448221,1736532634377,-500.0,0.00021917,3]
[348448223,1736532634387,-1250.12,0.00021917,3]
[348448225,1736532634397,-500.0,0.00021917,3]
[348448227,1736532634407,-500.0,0.00021917,3]
[348448229,1736532634417,-497.2095694,0.00021917,3]
[348448231,1736532634427,-501.18,0.00021917,3]
[348448233,1736532634438,-921.96,0.00021917,3]
[348448235,1736532634448,-500.0,0.00021917,3]
[348448237,1736532634458,-563.23,0.00021917,3]
[348448239,1736532634467,-251.82805172,0.00021917,3]
[348448241,1736532634477,-500.0,0.00021917,3]
[348448243,1736532634487,-199.65488096,0.00021917,3]
[348448245,1736532634496,-500.0,0.00021917,3]
[348448247,1736532634506,-500.0,0.00021917,3]
[348448249,1736532634515,-500.0,0.00021917,3]
[348448251,1736532634525,-500.0,0.00021917,3]
[348448253,1736532634535,-500.0,0.00021917,3]
[348448255,1736532634544,-690.03,0.00021917,2]
[348448257,1736532634554,-500.0,0.00021917,3]
[348448259,1736532634564,-500.0,0.00021917,3]
[348448261,1736532634573,-500.0,0.00021917,3]
[348448263,1736532634583,-500.0,0.00021917,3]
[348448265,1736532634592,-500.0,0.00021917,3]
[348448266,1736532634601,-500.0,0.00021917,3]
[348448268,1736532634611,-500.0,0.00021917,3]
[348448270,1736532634620,-500.0,0.00021917,3]
[348448272,1736532634630,-500.0,0.00021917,3]
[348448274,1736532634639,-500.0,0.00021917,3]
[348448276,1736532634649,-500.0,0.00021917,3]
[348448278,1736532634659,-425.6,0.00021917,3]
[348448280,1736532634668,-335.27579249,0.00021917,3]
[348448282,1736532634678,-500.0,0.00021917,3]
[348448284,1736532634687,-511.68,0.00021917,3]
[348448286,1736532634699,-500.0,0.00021917,3]
[348448288,1736532634708,-500.0,0.00021917,3]
[348448291,1736532634718,-500.0,0.00021917,3]
[348448293,1736532634728,-500.0,0.00021917,3]
[348448295,1736532634738,-747.49,0.00021917,3]
[348448297,1736532634749,-500.0,0.00021917,3]
[348448298,1736532634758,-500.0,0.00021917,3]
[348448300,1736532634768,-500.0,0.00021917,3]
[348448302,1736532634778,-500.0,0.00021917,3]
[348448305,1736532634789,-500.0,0.00021917,2]
[348448307,1736532634800,-500.0,0.00021917,3]
[348448308,1736532634810,-663.74,0.00021917,3]
[348448310,1736532634820,-500.0,0.00021917,3]
[348448312,1736532634828,-500.0,0.00021917,3]
[348448314,1736532634837,-500.0,0.00021917,3]
[348448316,1736532634847,-500.0,0.00021917,3]
[348448318,1736532634858,-500.0,0.00021917,3]
[348448320,1736532634867,-500.0,0.00021917,3]
[348448322,1736532634876,-500.0,0.00021917,3]
[348448324,1736532634886,-500.0,0.00021917,3]
[348448326,1736532634896,-500.0,0.00021917,3]
[348448328,1736532634906,-500.0,0.00021917,3]
[348448330,1736532634916,-382.8703344,0.00021917,3]
[348448332,1736532634925,-626.63080272,0.00021917,3]
[348448334,1736532634935,-500.0,0.00021917,3]
[348448336,1736532634945,-500.0,0.00021917,3]
[348448338,1736532634955,-780.27,0.00021917,3]
[348448340,1736532634965,-519.86,0.00021917,3]
[348448342,1736532634975,-500.0,0.00021917,3]
[348448344,1736532634984,-500.0,0.00021917,3]
[348448346,1736532634994,-500.0,0.00021917,3]
[348448348,1736532635005,-500.0,0.00021917,3]
[348448350,1736532635015,-500.0,0.00021917,3]
[348448352,1736532635024,-500.0,0.00021917,3]
[348448354,1736532635034,-500.0,0.00021917,3]
[348448356,1736532635044,-500.0,0.00021917,3]
[348448358,1736532635054,-500.0,0.00021917,3]
[348448360,1736532635063,-500.0,0.00021917,3]
[348448362,1736532635074,-500.0,0.00021917,3]
[348448364,1736532635084,-152.3153984,0.00021917,3]
[348448500,1736532636734,-347.6846016,0.00021917,3]
[348448503,1736532636744,-575.28,0.00021917,3]
[348448506,1736532636753,-500.0,0.00021917,3]
[348448508,1736532636763,-500.0,0.00021917,3]
[348448510,1736532636772,-500.0,0.00021917,3]
[348448512,1736532636782,-500.0,0.00021917,3]
[348448514,1736532636791,-500.0,0.00021917,3]
[348448516,1736532636801,-500.0,0.00021917,3]
[348448518,1736532636811,-500.0,0.00021917,3]
[348448520,1736532636820,-500.0,0.00021917,3]
[348448522,1736532636831,-500.0,0.00021917,3]
[348448525,1736532636841,-500.0,0.00021917,3]
[348448527,1736532636852,-500.0,0.00021917,3]
[348448529,1736532636862,-500.0,0.00021917,3]
[348448530,1736532636871,-1267.98,0.00021917,2]
[348448532,1736532636881,-500.0,0.00021917,3]
[348448535,1736532636891,-500.0,0.00021917,3]
[348448536,1736532636901,-500.0,0.00021917,3]
[348448538,1736532636911,-500.0,0.00021917,3]
[348448540,1736532636920,-500.0,0.00021917,3]
[348448542,1736532636930,-500.0,0.00021917,3]
[348448544,1736532636940,-500.0,0.00021917,3]
[348448546,1736532636952,-502.22038267,0.00021917,3]
[348448548,1736532636962,-500.0,0.00021917,3]
[348448550,1736532636972,-638.41443835,0.00021917,3]
[348448552,1736532636982,-500.0,0.00021917,3]
[348448555,1736532636991,-500.0,0.00021917,3]
[348448556,1736532637001,-500.0,0.00021917,3]
[348448558,1736532637010,-500.0,0.00021917,3]
[348448560,1736532637019,-521.41413678,0.00021917,3]
[348448562,1736532637028,-529.87530079,0.00021917,3]
[348448564,1736532637038,-500.0,0.00021917,3]
[348448566,1736532637048,-2047.31,0.00021917,3]
[348448568,1736532637057,-500.0,0.00021917,3]
[348448570,1736532637067,-500.0,0.00021917,3]
[348448572,1736532637077,-3365.71,0.00021917,3]
[348448574,1736532637088,-500.0,0.00021917,3]
[348448576,1736532637097,-501.01,0.00021917,3]
[348448579,1736532637109,-500.0,0.00021917,3]
[348448581,1736532637121,-500.0,0.00021917,3]
[348448583,1736532637131,-4939.92,0.00021917,3]
[348448585,1736532637141,-500.0,0.00021917,3]
[348448587,1736532637152,-500.0,0.00021917,3]
[348448588,1736532637161,-638.02,0.00021917,3]
[348448591,1736532637172,-500.0,0.00021917,3]
[348448592,1736532637182,-500.0,0.00021917,3]
[348448595,1736532637192,-500.0,0.00021917,3]
[348448597,1736532637203,-29802.38,0.00021917,3]
[348448599,1736532637212,-549.8528627,0.00021917,3]
[348448600,1736532637222,-500.0,0.00021917,3]
[348448602,1736532637231,-500.0,0.00021917,3]
[348448604,1736532637243,-998.12,0.00021917,3]
[348448606,1736532637254,-500.0,0.00021917,3]
[348448608,1736532637264,-500.0,0.00021917,3]
[348448610,1736532637276,-500.0,0.00021917,3]
[348448612,1736532637288,-500.0,0.00021917,3]
[348448614,1736532637297,-500.0,0.00021917,3]
[348448616,1736532637307,-500.0,0.00021917,3]
[348448618,1736532637317,-500.0,0.00021917,3]
[348448620,1736532637327,-500.0,0.00021917,3]
[348448622,1736532637337,-1384.7,0.00021917,3]
[348448624,1736532637348,-500.0,0.00021917,3]
[348448626,1736532637358,-500.0,0.00021917,3]
[348448628,1736532637369,-814.68,0.00021917,3]
[348448630,1736532637378,-500.0,0.00021917,3]
[348448632,1736532637388,-6051.25,0.00021917,3]
[348448634,1736532637397,-1250.49,0.00021917,3]
[348448636,1736532637408,-500.0,0.00021917,3]
[348448638,1736532637418,-481.0,0.00021917,3]
[348448640,1736532637428,-500.0,0.00021917,3]
[348448642,1736532637438,-202.70684271,0.00021917,3]
[348448644,1736532637450,-500.0,0.00021917,3]
[348448646,1736532637460,-500.0,0.00021917,3]
[348448648,1736532637471,-1218.42,0.00021917,3]
[348448650,1736532637480,-500.0,0.00021917,3]
[348448652,1736532637491,-500.0,0.00021917,3]
[348448654,1736532637501,-500.0,0.00021917,3]
[348448656,1736532637511,-500.0,0.00021917,3]
[348448658,1736532637520,-500.0,0.00021917,3]
[348448660,1736532637530,-500.0,0.00021917,3]
[348448662,1736532637540,-500.0,0.00021917,3]
[348448664,1736532637550,-500.0,0.00021917,3]
[348448667,1736532637560,-500.0,0.00021917,3]
[348448670,1736532637570,-6596.93,0.00021917,3]
[348448672,1736532637580,-500.0,0.00021917,3]
[348448674,1736532637590,-500.0,0.00021917,3]
[348448676,1736532637600,-500.0,0.00021917,3]
[348448678,1736532637609,-500.0,0.00021917,3]
[348448680,1736532637619,-500.0,0.00021917,3]
[348448682,1736532637630,-500.0,0.00021917,3]
[348448684,1736532637640,-2243.71,0.00021917,3]
[348448687,1736532637650,-500.0,0.00021917,3]
[348448690,1736532637660,-500.0,0.00021917,3]
[348448693,1736532637670,-500.0,0.00021917,3]
[348448696,1736532637680,-1265.98,0.00021917,3]
[348448700,1736532637690,-1403.36,0.00021917,3]
[348448702,1736532637702,-500.0,0.00021917,3]
[348448704,1736532637711,-500.0,0.00021917,3]
[348448706,1736532637721,-500.0,0.00021917,3]
[348448708,1736532637731,-500.0,0.00021917,3]
[348448710,1736532637741,-500.0,0.00021917,3]
[348448712,1736532637751,-553.48,0.00021917,3]
[348448714,1736532637761,-500.0,0.00021917,3]
[348448716,1736532637771,-989.24,0.00021917,3]
[348448718,1736532637780,-500.0,0.00021917,3]
[348448720,1736532637791,-391.28372359,0.00021917,3]
[348448722,1736532637800,-868.82,0.00021917,3]
[348448724,1736532637810,-2698.57,0.00021917,3]
[348448726,1736532637819,-500.0,0.00021917,3]
[348448728,1736532637829,-500.0,0.00021917,3]
[348448730,1736532637839,-500.0,0.00021917,3]
[348448733,1736532637848,-1025.91,0.00021917,3]
[348448735,1736532637858,-2507.14,0.00021917,3]
[348448737,1736532637868,-649.32,0.00021917,3]
[348448738,1736532637878,-500.0,0.00021917,3]
[348448754,1736532638018,-500.0,0.00021917,3]
[348448756,1736532638029,-500.0,0.00021917,3]
[348448758,1736532638039,-504.96294223,0.00021917,3]
[348448760,1736532638049,-500.0,0.00021917,3]
[348448762,1736532638059,-500.0,0.00021917,3]
[348448764,1736532638069,-600.06,0.00021917,3]
[348448766,1736532638078,-803.8,0.00021917,3]
[348448768,1736532638088,-1274.04,0.00021917,3]
[348448770,1736532638098,-1291.09,0.00021917,3]
[348448772,1736532638109,-1224.57,0.00021917,3]
[348448774,1736532638119,-500.0,0.00021917,3]
[348448776,1736532638129,-500.0,0.00021917,3]
[348448778,1736532638139,-568.19,0.00021917,3]
[348448780,1736532638149,-993.17,0.00021917,3]
[348448782,1736532638158,-500.0,0.00021917,3]
[348448784,1736532638168,-500.0,0.00021917,3]
[348448786,1736532638178,-789.43,0.00021917,3]
[348448788,1736532638188,-500.0,0.00021973,2]
[348448790,1736532638198,-500.0,0.00021973,2]
[348448792,1736532638208,-294.40463859,0.00021973,2]
[348448794,1736532638218,-500.0,0.00021973,2]
[348448796,1736532638228,-162.0,0.00022,2]
[348448798,1736532638239,-32637.23042333,0.00022091,3]
[348448801,1736532638251,-500.0,0.00022173,2]
[348448804,1736532638263,-500.0,0.00022191,3]
[348448807,1736532638273,-500.0,0.00022191,3]
[348448810,1736532638283,-500.0,0.00022191,3]
[348448813,1736532638295,-500.0,0.00022191,3]
[348448816,1736532638304,-500.0,0.00022191,3]
[348448819,1736532638314,-500.0,0.00022191,3]
[348448822,1736532638324,-500.0,0.00022191,3]
[348448825,1736532638333,-500.0,0.00022191,3]
[348448827,1736532638344,-500.0,0.00022191,3]
[348448830,1736532638353,-500.0,0.00022191,3]
[348448834,1736532638364,-500.0,0.00022191,3]
[348448836,1736532638373,-500.0,0.00022191,3]
[348448839,1736532638383,-992.46,0.00022191,3]
[348448843,1736532638394,-500.0,0.00022191,3]
[348448846,1736532638404,-620.50588468,0.00022191,3]
[348448848,1736532638414,-500.0,0.00022191,3]
[348448851,1736532638423,-500.0,0.00022191,3]
[348448854,1736532638433,-500.0,0.00022191,3]
[348448857,1736532638443,-500.0,0.00022191,3]
[348448860,1736532638455,-500.0,0.00022191,3]
[348448863,1736532638465,-500.0,0.00022191,3]
[348448866,1736532638474,-500.0,0.00022191,3]
[348448869,1736532638484,-500.0,0.00022191,3]
[348448872,1736532638494,-601.84,0.00022191,3]
[348448875,1736532638505,-500.0,0.00022191,3]
[348448878,1736532638515,-500.87731648,0.00022191,3]
[348448880,1736532638525,-994.86,0.00022191,3]
[348448882,1736532638535,-897.81,0.00022191,3]
[348448884,1736532638544,-811.8,0.00022191,3]
[348448886,1736532638554,-500.0,0.00022191,3]
[348448888,1736532638563,-500.0,0.00022191,3]
[348448890,1736532638574,-500.0,0.00022191,3]
[348448892,1736532638584,-277.24257513,0.00022191,3]
[348448894,1736532638594,-233.35443405,0.00022191,3]
[348448895,1736532638604,-1250.12,0.00022191,3]
[348448897,1736532638614,-500.0,0.00022191,3]
[348448900,1736532638624,-501.18,0.00022191,3]
[348448902,1736532638634,-500.0,0.00022191,3]
[348448903,1736532638644,-921.96,0.00022191,3]
[348448905,1736532638654,-563.23,0.00022191,3]
[348448907,1736532638664,-500.0,0.00022191,3]
[348448910,1736532638674,-500.0,0.00022191,3]
[348448911,1736532638683,-500.0,0.00022191,3]
[348448913,1736532638695,-690.03,0.00022191,2]
[348448915,1736532638708,-500.0,0.00022191,3]
[348448917,1736532638719,-500.0,0.00022191,3]
[348448920,1736532638728,-500.0,0.00022191,3]
[348448922,1736532638739,-500.0,0.00022191,3]
[348448924,1736532638748,-747.49,0.00022191,3]
[348448925,1736532638759,-515.25597996,0.00022191,3]
[348448927,1736532638775,-500.0,0.00022191,3]
[348448930,1736532638787,-500.0,0.00022191,3]
[348448932,1736532638797,-500.0,0.00022191,2]
[348448934,1736532638807,-500.0,0.00022191,3]
[348448936,1736532638818,-663.74,0.00022191,3]
[348448938,1736532638827,-519.86,0.00022191,3]
[348448940,1736532638837,-500.0,0.00022191,3]
[348448942,1736532638848,-500.0,0.00022191,3]
[348448944,1736532638857,-500.0,0.00022191,3]
[348448946,1736532638867,-500.0,0.00022191,3]
[348448948,1736532638877,-500.0,0.00022191,3]
[348448950,1736532638887,-575.28,0.00022191,3]
[348448953,1736532638909,-500.0,0.00022191,3]
[348448955,1736532638922,-500.0,0.00022191,3]
[348448957,1736532638932,-500.0,0.00022191,3]
[348448960,1736532638942,-1267.98,0.00022191,2]
[348448962,1736532638956,-500.0,0.00022191,3]
[348448964,1736532638967,-500.0,0.00022191,3]
[348448966,1736532638978,-500.0,0.00022191,3]
[348448968,1736532638987,-500.0,0.00022191,3]
[348448970,1736532638998,-2047.31,0.00022191,3]
[348448972,1736532639009,-3365.71,0.00022191,3]
[348448974,1736532639019,-501.01,0.00022191,3]
[348448976,1736532639029,-4939.92,0.00022191,3]
[348448978,1736532639040,-638.02,0.00022191,3]
[348448980,1736532639051,-500.0,0.00022191,3]
[348448982,1736532639061,-29802.38,0.00022191,3]
[348448984,1736532639071,-998.12,0.00022191,3]
[348448986,1736532639082,-500.0,0.00022191,3]
[348448988,1736532639092,-500.0,0.00022191,3]
[348448990,1736532639102,-500.0,0.00022191,3]
[348448992,1736532639112,-500.0,0.00022191,3]
[348448995,1736532639123,-1384.7,0.00022191,3]
[348448997,1736532639133,-346.82884539,0.00022191,3]
[348448998,1736532639143,-814.68,0.00022191,3]
[348449000,1736532639153,-1250.49,0.00022191,3]
[348449003,1736532639164,-6051.25,0.00022191,3]
[348449005,1736532639174,-500.0,0.00022191,3]
[348449007,1736532639184,-1218.42,0.00022191,3]
[348449009,1736532639194,-500.0,0.00022191,3]
[348449011,1736532639208,-500.0,0.00022191,3]
[348449013,1736532639218,-500.0,0.00022191,3]
[348449015,1736532639228,-500.0,0.00022191,3]
[348449017,1736532639237,-500.0,0.00022191,3]
[348449019,1736532639252,-6596.93,0.00022191,3]
[348449021,1736532639262,-2243.71,0.00022191,3]
[348449023,1736532639272,-500.0,0.00022191,3]
[348449025,1736532639284,-1265.98,0.00022191,3]
[348449027,1736532639295,-1403.36,0.00022191,3]
[348449029,1736532639305,-500.0,0.00022191,3]
[348449031,1736532639315,-500.0,0.00022191,3]
[348449033,1736532639328,-553.48,0.00022191,3]
[348449035,1736532639339,-989.24,0.00022191,3]
[348449038,1736532639349,-500.0,0.00022191,3]
[348449040,1736532639360,-868.82,0.00022191,3]
[348449042,1736532639369,-2698.57,0.00022191,3]
[348449044,1736532639380,-500.0,0.00022191,3]
[348449046,1736532639390,-500.0,0.00022191,3]
[348449048,1736532639400,-1025.91,0.00022191,3]
[348449050,1736532639410,-2507.14,0.00022191,3]
[348449052,1736532639420,-500.0,0.00022191,3]
[348449054,1736532639430,-500.0,0.00022191,3]
[348449055,1736532639440,-500.0,0.00022191,3]
[348449056,1736532639454,-600.06,0.00022191,3]
[348449057,1736532639464,-803.8,0.00022191,3]
[348449058,1736532639476,-1274.04,0.00022191,3]
[348449059,1736532639486,-1291.09,0.00022191,3]
[348449060,1736532639496,-1224.57,0.00022191,3]
[348449061,1736532639507,-568.19,0.00022191,3]
[348449062,1736532639518,-993.17,0.00022191,3]
[348449063,1736532639529,-500.0,0.00022191,3]
[348449064,1736532639539,-500.0,0.00022191,3]
[348449066,1736532639548,-1107.1,0.000222,2]
[348449068,1736532639559,-500.0,0.00022465,3]
[348449072,1736532639579,-500.0,0.00022465,3]
[348449075,1736532639595,-500.0,0.00022465,3]
[348449077,1736532639611,-500.0,0.00022465,3]
[348449078,1736532639625,-500.0,0.00022465,3]
[348449079,1736532639641,-500.0,0.00022465,3]
[348449081,1736532639655,-500.0,0.00022465,3]
[348449083,1736532639666,-500.0,0.00022465,3]
[348449085,1736532639678,-500.0,0.00022465,3]
[348449087,1736532639693,-471.32457676,0.00022465,3]
[348449088,1736532639709,-500.0,0.00022465,3]
[348449089,1736532639727,-992.46,0.00022465,3]
[348449090,1736532639742,-500.0,0.00022465,3]
[348449091,1736532639755,-500.0,0.00022465,3]
[348449092,1736532639768,-500.0,0.00022465,3]
[348449093,1736532639783,-500.0,0.00022465,3]
[348449094,1736532639797,-151.0,0.00022465,7]
[348449095,1736532639811,-500.0,0.00022465,3]
[348449096,1736532639825,-500.0,0.00022465,3]
[348449097,1736532639839,-500.0,0.00022465,3]
[348449098,1736532639853,-605.84718795,0.00022465,3]
[348449099,1736532639865,-601.84,0.00022465,3]
[348449100,1736532639876,-500.0,0.00022465,3]
[348449101,1736532639890,-994.86,0.00022465,3]
[348449102,1736532639905,-897.81,0.00022465,3]
[348449103,1736532639917,-151.0,0.00022465,7]
[348449104,1736532639930,-151.0,0.00022465,7]
[348449105,1736532639944,-811.8,0.00022465,3]
[348449106,1736532639962,-500.0,0.00022465,3]
[348449107,1736532639974,-500.0,0.00022465,3]
[348449108,1736532639987,-500.0,0.00022465,3]
[348449109,1736532639998,-1250.12,0.00022465,3]
[348449110,1736532640009,-500.0,0.00022465,3]